[Event "*** Titled Tuesday Blitz"]
[Site "Chess.com"]
[Date "2021.04.27"]
[Round "9"]
[White "AlexSuv"]
[Black "MarcoRiehle"]
[Result "1-0"]
[WhiteElo "2588"]
[BlackElo "2702"]
[TimeControl "180+1"]
[EndTime "11:44:12 PDT"]
[Termination "AlexSuv won by checkmate"]

1. d4 {[%clk 0:03:00.9]} 1... d5 {[%clk 0:01:49.2]} 2. c4 {[%clk 0:02:56.3]}
2... e6 {[%clk 0:01:48.4]} 3. Nc3 {[%clk 0:02:56.6]} 3... c5 {[%clk 0:01:48]} 4.
cxd5 {[%clk 0:02:53.9]} 4... cxd4 {[%clk 0:01:47.3]} 5. Qa4+ {[%clk 0:02:53.4]}
5... Bd7 {[%clk 0:01:47.3]} 6. Qxd4 {[%clk 0:02:53]} 6... exd5 {[%clk
0:01:48.2]} 7. Nf3 {[%clk 0:02:45.4]} 7... Nc6 {[%clk 0:01:47.2]} 8. Qd1 {[%clk
0:02:43]} 8... Nf6 {[%clk 0:01:45.8]} 9. e3 {[%clk 0:02:39.1]} 9... Be6 {[%clk
0:01:40.5]} 10. Be2 {[%clk 0:02:32.8]} 10... Bd6 {[%clk 0:01:39.4]} 11. O-O
{[%clk 0:02:32.8]} 11... O-O {[%clk 0:01:38.6]} 12. Nb5 {[%clk 0:02:32.6]} 12...
Bb8 {[%clk 0:01:35.6]} 13. b3 {[%clk 0:02:31.3]} 13... Ne4 {[%clk 0:01:32.1]}
14. Bb2 {[%clk 0:02:29.7]} 14... a6 {[%clk 0:01:20.5]} 15. Nbd4 {[%clk 0:02:29]}
15... Qd6 {[%clk 0:01:12.9]} 16. Nxc6 {[%clk 0:02:28.7]} 16... bxc6 {[%clk
0:01:11.7]} 17. Be5 {[%clk 0:02:25.8]} 17... Qd7 {[%clk 0:01:04]} 18. Bxb8
{[%clk 0:02:25]} 18... Nc3 {[%clk 0:01:04.2]} 19. Qd2 {[%clk 0:02:22.3]} 19...
Nxe2+ {[%clk 0:01:04]} 20. Qxe2 {[%clk 0:02:23.2]} 20... Rfxb8 {[%clk
0:01:02.8]} 21. Rfc1 {[%clk 0:02:20.3]} 21... Qd6 {[%clk 0:01:00.3]} 22. Qc2
{[%clk 0:02:17.4]} 22... Rc8 {[%clk 0:00:54.7]} 23. Qc5 {[%clk 0:02:16.1]} 23...
Qxc5 {[%clk 0:00:49.5]} 24. Rxc5 {[%clk 0:02:15.7]} 24... a5 {[%clk 0:00:49.9]}
25. Rac1 {[%clk 0:02:15.1]} 25... a4 {[%clk 0:00:49.8]} 26. b4 {[%clk
0:02:02.4]} 26... d4 {[%clk 0:00:44.7]} 27. Nxd4 {[%clk 0:02:00.8]} 27... Bxa2
{[%clk 0:00:44.1]} 28. Nxc6 {[%clk 0:02:01.3]} 28... Kf8 {[%clk 0:00:42.4]} 29.
b5 {[%clk 0:01:58.9]} 29... Rc7 {[%clk 0:00:31.4]} 30. Nb4 {[%clk 0:00:56.8]}
30... Rxc5 {[%clk 0:00:28.2]} 31. Rxc5 {[%clk 0:00:57.7]} 31... Bb3 {[%clk
0:00:21.6]} 32. b6 {[%clk 0:00:57.9]} 32... Rb8 {[%clk 0:00:20.7]} 33. Rb5
{[%clk 0:00:36.5]} 33... g6 {[%clk 0:00:09.7]} 34. Nc6 {[%clk 0:00:27.7]} 34...
Rb7 {[%clk 0:00:10.1]} 35. Na5 {[%clk 0:00:26.9]} 35... Rb8 {[%clk 0:00:08.5]}
36. Nxb3 {[%clk 0:00:26.9]} 36... axb3 {[%clk 0:00:08.4]} 37. Rxb3 {[%clk
0:00:27.8]} 37... Ke7 {[%clk 0:00:09.1]} 38. h4 {[%clk 0:00:25.2]} 38... Kd6
{[%clk 0:00:09.3]} 39. Kh2 {[%clk 0:00:25.5]} 39... Kc6 {[%clk 0:00:09]} 40. Kg3
{[%clk 0:00:25.9]} 40... Kb7 {[%clk 0:00:08.5]} 41. Kf4 {[%clk 0:00:24.9]} 41...
f6 {[%clk 0:00:08]} 42. Rd3 {[%clk 0:00:22.5]} 42... Rg8 {[%clk 0:00:04.5]} 43.
Rd7+ {[%clk 0:00:21.9]} 43... Kxb6 {[%clk 0:00:04.3]} 44. Rxh7 {[%clk
0:00:22.8]} 44... Kc6 {[%clk 0:00:04.9]} 45. Rf7 {[%clk 0:00:23]} 45... Kd6
{[%clk 0:00:03.8]} 46. Rxf6+ {[%clk 0:00:22.9]} 46... Ke7 {[%clk 0:00:04.7]} 47.
Kg5 {[%clk 0:00:23.3]} 47... Rh8 {[%clk 0:00:05.1]} 48. Rxg6 {[%clk 0:00:22.5]}
48... Rf8 {[%clk 0:00:05.6]} 49. f4 {[%clk 0:00:22.6]} 49... Rc8 {[%clk
0:00:05.1]} 50. e4 {[%clk 0:00:22.9]} 50... Kf7 {[%clk 0:00:05.3]} 51. e5 {[%clk
0:00:22.9]} 51... Ke7 {[%clk 0:00:05.6]} 52. g4 {[%clk 0:00:23.1]} 52... Kd7
{[%clk 0:00:05.6]} 53. h5 {[%clk 0:00:23.7]} 53... Rf8 {[%clk 0:00:05.5]} 54. h6
{[%clk 0:00:24.2]} 54... Kc7 {[%clk 0:00:06]} 55. f5 {[%clk 0:00:24.7]} 55...
Kb7 {[%clk 0:00:06]} 56. e6 {[%clk 0:00:25.3]} 56... Rc8 {[%clk 0:00:06]} 57.
Rg7+ {[%clk 0:00:25.8]} 57... Ka6 {[%clk 0:00:05.7]} 58. h7 {[%clk 0:00:25.8]}
58... Kb5 {[%clk 0:00:05.1]} 59. Rg8 {[%clk 0:00:25.7]} 59... Rc2 {[%clk
0:00:05.4]} 60. h8=Q {[%clk 0:00:25.7]} 60... Kb4 {[%clk 0:00:06.3]} 61. Qd4+
{[%clk 0:00:25.6]} 61... Kb3 {[%clk 0:00:06.5]} 62. Rb8+ {[%clk 0:00:25.7]}
62... Ka3 {[%clk 0:00:06.3]} 63. Qa7# {[%clk 0:00:25.3]} 1-0

[Event "*** Titled Tuesday Blitz"]
[Site "Chess.com"]
[Date "2021.04.27"]
[Round "9"]
[White "MIJuanReyesRosa"]
[Black "Kildepiotr"]
[Result "1/2-1/2"]
[WhiteElo "2069"]
[BlackElo "2595"]
[TimeControl "180+1"]
[EndTime "11:44:12 PDT"]
[Termination "Game drawn by repetition"]

1. d4 {[%clk 0:02:20.9]} 1... c5 {[%clk 0:02:58.4]} 2. dxc5 {[%clk 0:02:14.7]}
2... e6 {[%clk 0:02:58.4]} 3. c4 {[%clk 0:02:13.9]} 3... Bxc5 {[%clk 0:02:58.2]}
4. a3 {[%clk 0:02:13.6]} 4... a5 {[%clk 0:02:56]} 5. Nf3 {[%clk 0:02:11.5]} 5...
Nf6 {[%clk 0:02:54.6]} 6. e3 {[%clk 0:02:09.4]} 6... Nc6 {[%clk 0:02:54.2]} 7.
Nc3 {[%clk 0:02:08.7]} 7... O-O {[%clk 0:02:54.1]} 8. b3 {[%clk 0:02:07.9]} 8...
d5 {[%clk 0:02:50.4]} 9. Bb2 {[%clk 0:02:00.8]} 9... d4 {[%clk 0:02:48.2]} 10.
exd4 {[%clk 0:01:59.5]} 10... Nxd4 {[%clk 0:02:48.3]} 11. Nxd4 {[%clk
0:01:57.8]} 11... Bxd4 {[%clk 0:02:49.2]} 12. Be2 {[%clk 0:01:54.3]} 12... e5
{[%clk 0:02:46.5]} 13. O-O {[%clk 0:01:52.5]} 13... Be6 {[%clk 0:02:45.8]} 14.
Qc2 {[%clk 0:01:49.7]} 14... Qb6 {[%clk 0:02:43.1]} 15. Na4 {[%clk 0:01:44.9]}
15... Qa7 {[%clk 0:02:39.4]} 16. c5 {[%clk 0:01:39.7]} 16... Rad8 {[%clk
0:02:34]} 17. Rad1 {[%clk 0:01:35.1]} 17... Qb8 {[%clk 0:02:14.8]} 18. b4 {[%clk
0:01:25.1]} 18... axb4 {[%clk 0:02:14]} 19. axb4 {[%clk 0:01:24.8]} 19... Bg4
{[%clk 0:01:38]} 20. h3 {[%clk 0:01:20.4]} 20... Bxe2 {[%clk 0:01:36.2]} 21.
Qxe2 {[%clk 0:01:20.1]} 21... Rfe8 {[%clk 0:01:36.3]} 22. Nb6 {[%clk 0:01:11.2]}
22... Qc7 {[%clk 0:01:30.7]} 23. Rfe1 {[%clk 0:01:07.3]} 23... Qc6 {[%clk
0:01:26.1]} 24. Nc4 {[%clk 0:01:03.4]} 24... Re6 {[%clk 0:01:01.6]} 25. Nxe5
{[%clk 0:00:27.7]} 25... Qe4 {[%clk 0:00:12.7]} 26. Qxe4 {[%clk 0:00:26]} 26...
Nxe4 {[%clk 0:00:12.6]} 27. Bxd4 {[%clk 0:00:24.2]} 27... Ng5 {[%clk 0:00:10]}
28. Bb2 {[%clk 0:00:18.5]} 28... Rxd1 {[%clk 0:00:08.6]} 29. Rxd1 {[%clk
0:00:17.6]} 29... h6 {[%clk 0:00:08.9]} 30. Nf3 {[%clk 0:00:15.6]} 30... Ne4
{[%clk 0:00:07.8]} 31. Re1 {[%clk 0:00:13.6]} 31... f5 {[%clk 0:00:06.4]} 32.
Nd2 {[%clk 0:00:11.9]} 32... Ra6 {[%clk 0:00:04.6]} 33. Nxe4 {[%clk 0:00:11.1]}
33... fxe4 {[%clk 0:00:05.5]} 34. Rxe4 {[%clk 0:00:11.1]} 34... Ra2 {[%clk
0:00:06.4]} 35. Re2 {[%clk 0:00:09.4]} 35... Kf7 {[%clk 0:00:05.9]} 36. b5
{[%clk 0:00:09.3]} 36... Ra5 {[%clk 0:00:05.8]} 37. c6 {[%clk 0:00:08.4]} 37...
Rxb5 {[%clk 0:00:06.1]} 38. cxb7 {[%clk 0:00:05.6]} 38... Rxb7 {[%clk 0:00:07]}
39. Kh2 {[%clk 0:00:05.2]} 39... g5 {[%clk 0:00:07.4]} 40. g4 {[%clk 0:00:04.4]}
40... Rb3 {[%clk 0:00:08.3]} 41. Kg2 {[%clk 0:00:04]} 41... Rd3 {[%clk
0:00:08.6]} 42. Be5 {[%clk 0:00:03.5]} 42... Rb3 {[%clk 0:00:08.9]} 43. Bg3
{[%clk 0:00:03.6]} 43... Rd3 {[%clk 0:00:09.2]} 44. h4 {[%clk 0:00:03.5]} 44...
Rb3 {[%clk 0:00:09.7]} 45. hxg5 {[%clk 0:00:03.4]} 45... hxg5 {[%clk 0:00:10.6]}
46. Rd2 {[%clk 0:00:03.5]} 46... Rb5 {[%clk 0:00:10.5]} 47. Rc2 {[%clk
0:00:03.5]} 47... Kf6 {[%clk 0:00:10.6]} 48. Rc6+ {[%clk 0:00:03.6]} 48... Kf7
{[%clk 0:00:11.1]} 49. Rc7+ {[%clk 0:00:03.7]} 49... Kf6 {[%clk 0:00:11.5]} 50.
Rc6+ {[%clk 0:00:04]} 50... Kf7 {[%clk 0:00:12]} 51. Rc7+ {[%clk 0:00:04.2]}
51... Kf6 {[%clk 0:00:12.5]} 52. Rc6+ {[%clk 0:00:04.4]} 1/2-1/2

[Event "*** Titled Tuesday Blitz"]
[Site "Chess.com"]
[Date "2021.04.27"]
[Round "9"]
[White "riospm"]
[Black "queen_iryna"]
[Result "1-0"]
[WhiteElo "2539"]
[BlackElo "2398"]
[TimeControl "180+1"]
[EndTime "11:44:14 PDT"]
[Termination "riospm won by resignation"]

1. e4 {[%clk 0:02:57.7]} 1... d6 {[%clk 0:03:00.9]} 2. d4 {[%clk 0:02:55]} 2...
Nf6 {[%clk 0:03:01]} 3. Nc3 {[%clk 0:02:54.1]} 3... e5 {[%clk 0:03:01.2]} 4. Nf3
{[%clk 0:02:54.1]} 4... Nc6 {[%clk 0:03:01.1]} 5. Bb5 {[%clk 0:02:52.7]} 5...
exd4 {[%clk 0:02:57.9]} 6. Nxd4 {[%clk 0:02:51.8]} 6... Bd7 {[%clk 0:02:57.8]}
7. Bxc6 {[%clk 0:02:51.1]} 7... bxc6 {[%clk 0:02:57.3]} 8. O-O {[%clk
0:02:51.5]} 8... Be7 {[%clk 0:02:57.6]} 9. b3 {[%clk 0:02:51.5]} 9... O-O {[%clk
0:02:57.7]} 10. Bb2 {[%clk 0:02:52]} 10... c5 {[%clk 0:02:57.6]} 11. Nde2 {[%clk
0:02:50.5]} 11... Bc6 {[%clk 0:02:54.2]} 12. f3 {[%clk 0:02:49.9]} 12... Nd7
{[%clk 0:02:53.4]} 13. Nf4 {[%clk 0:02:49.5]} 13... Bf6 {[%clk 0:02:51.1]} 14.
Rb1 {[%clk 0:02:48.4]} 14... c4 {[%clk 0:02:34.1]} 15. Ncd5 {[%clk 0:02:44.7]}
15... Bxb2 {[%clk 0:02:30.9]} 16. Rxb2 {[%clk 0:02:43.6]} 16... cxb3 {[%clk
0:02:29.8]} 17. cxb3 {[%clk 0:02:39.3]} 17... Nf6 {[%clk 0:02:23.2]} 18. Rc2
{[%clk 0:02:37.2]} 18... Bxd5 {[%clk 0:02:20.4]} 19. Nxd5 {[%clk 0:02:36.5]}
19... Nxd5 {[%clk 0:02:20.1]} 20. Qxd5 {[%clk 0:02:37]} 20... a5 {[%clk
0:02:12.4]} 21. Rfc1 {[%clk 0:02:35.5]} 21... Ra7 {[%clk 0:02:06.1]} 22. Qd4
{[%clk 0:02:34.4]} 22... c5 {[%clk 0:02:02.6]} 23. Qc4 {[%clk 0:02:27.2]} 23...
a4 {[%clk 0:01:57.8]} 24. Rd2 {[%clk 0:02:25.8]} 24... axb3 {[%clk 0:01:55.2]}
25. axb3 {[%clk 0:02:25.3]} 25... Qb6 {[%clk 0:01:45.9]} 26. Rcd1 {[%clk
0:02:25.6]} 26... Rb7 {[%clk 0:01:42.8]} 27. Rxd6 {[%clk 0:02:24]} 27... Qxb3
{[%clk 0:01:42.4]} 28. Qxc5 {[%clk 0:02:24]} 28... g6 {[%clk 0:01:32.5]} 29. Rd8
{[%clk 0:02:22.5]} 29... Rxd8 {[%clk 0:01:27.5]} 30. Rxd8+ {[%clk 0:02:21.6]}
30... Kg7 {[%clk 0:01:27.9]} 31. Qf8+ {[%clk 0:02:12.7]} 31... Kf6 {[%clk
0:01:27.9]} 32. Qh8+ {[%clk 0:02:12.2]} 32... Kg5 {[%clk 0:01:22.3]} 33. Qe5+
{[%clk 0:01:59.2]} 33... Kh6 {[%clk 0:01:20.8]} 34. h4 {[%clk 0:01:52.5]} 34...
Qb6+ {[%clk 0:01:16.8]} 35. Qd4 {[%clk 0:01:51.8]} 35... Qxd4+ {[%clk 0:01:12]}
36. Rxd4 {[%clk 0:01:51]} 36... Kg7 {[%clk 0:01:12]} 37. Kh2 {[%clk 0:01:50.5]}
37... h5 {[%clk 0:01:11.7]} 38. Kg3 {[%clk 0:01:50.3]} 38... Rb2 {[%clk
0:01:10.3]} 39. Rd1 {[%clk 0:01:47.3]} 39... Ra2 {[%clk 0:01:09.8]} 40. Rg1
{[%clk 0:01:47]} 40... Rb2 {[%clk 0:01:06]} 41. Kf4 {[%clk 0:01:47.3]} 41... Ra2
{[%clk 0:01:05.2]} 42. g4 {[%clk 0:01:46.8]} 42... hxg4 {[%clk 0:01:04.7]} 43.
Rxg4 {[%clk 0:01:47.3]} 43... Rh2 {[%clk 0:01:01.1]} 44. Kg3 {[%clk 0:01:44.7]}
44... Rh1 {[%clk 0:01:01.1]} 45. Rg5 {[%clk 0:01:43.2]} 45... Kf6 {[%clk
0:00:52.5]} 46. Rb5 {[%clk 0:01:39.9]} 46... Rg1+ {[%clk 0:00:51.4]} 47. Kf4
{[%clk 0:01:39.5]} 47... Rh1 {[%clk 0:00:51.1]} 48. Kg3 {[%clk 0:01:36.5]} 48...
Rg1+ {[%clk 0:00:51]} 49. Kh2 {[%clk 0:01:36.4]} 49... Rf1 {[%clk 0:00:49.7]}
50. Kg2 {[%clk 0:01:36.5]} 50... Ra1 {[%clk 0:00:48.6]} 51. h5 {[%clk
0:01:36.2]} 51... gxh5 {[%clk 0:00:48.4]} 52. Rxh5 {[%clk 0:01:35]} 52... Ra3
{[%clk 0:00:47.4]} 53. Kg3 {[%clk 0:01:34.6]} 53... Kg6 {[%clk 0:00:47.5]} 54.
Rb5 {[%clk 0:01:33.1]} 54... Kf6 {[%clk 0:00:47.3]} 55. Kg4 {[%clk 0:01:32.5]}
55... Rc3 {[%clk 0:00:46]} 56. Rb6+ {[%clk 0:01:30.3]} 56... Kg7 {[%clk
0:00:44.5]} 57. e5 {[%clk 0:01:29.8]} 57... Ra3 {[%clk 0:00:41.3]} 58. f4 {[%clk
0:01:29.9]} 58... Kf8 {[%clk 0:00:34.5]} 59. Kg5 {[%clk 0:01:28.4]} 59... Ke7
{[%clk 0:00:34.3]} 60. f5 {[%clk 0:01:23.4]} 60... Rg3+ {[%clk 0:00:33.1]} 61.
Kf4 {[%clk 0:01:23.3]} 61... Rg1 {[%clk 0:00:29.8]} 62. Rb7+ {[%clk 0:01:23.3]}
62... Ke8 {[%clk 0:00:28.8]} 63. Rb3 {[%clk 0:01:22.8]} 63... Rf1+ {[%clk
0:00:26]} 64. Kg5 {[%clk 0:01:22.3]} 64... Ra1 {[%clk 0:00:21.9]} 65. Rb8+
{[%clk 0:01:20.8]} 65... Ke7 {[%clk 0:00:21.3]} 66. Rb7+ {[%clk 0:01:21]} 66...
Ke8 {[%clk 0:00:20.6]} 67. Kf6 {[%clk 0:01:19.4]} 67... Ra6+ {[%clk 0:00:20.5]}
68. e6 {[%clk 0:01:19.6]} 68... fxe6 {[%clk 0:00:20.7]} 69. fxe6 {[%clk
0:01:19.9]} 69... Kd8 {[%clk 0:00:18.2]} 70. Rh7 {[%clk 0:01:15]} 70... Ra1
{[%clk 0:00:16.3]} 71. Rh8+ {[%clk 0:01:09.5]} 71... Kc7 {[%clk 0:00:16.3]} 72.
Ke7 {[%clk 0:01:07.2]} 72... Rf1 {[%clk 0:00:12.2]} 73. Rh2 {[%clk 0:01:06.3]}
73... Rc1 {[%clk 0:00:09.4]} 74. Kf7 {[%clk 0:01:04.9]} 74... Rf1+ {[%clk
0:00:08.9]} 75. Ke8 {[%clk 0:01:04.6]} 75... Kd6 {[%clk 0:00:08.3]} 76. e7
{[%clk 0:01:04.6]} 76... Rd1 {[%clk 0:00:04.6]} 77. Rh6+ {[%clk 0:01:02.1]}
77... Kc7 {[%clk 0:00:04.8]} 78. Kf7 {[%clk 0:01:00.6]} 78... Rf1+ {[%clk
0:00:05]} 79. Rf6 {[%clk 0:01:00.1]} 1-0

[Event "*** Titled Tuesday Blitz"]
[Site "Chess.com"]
[Date "2021.04.27"]
[Round "9"]
[White "Das_Virus_2020"]
[Black "picturesquecheck"]
[Result "1-0"]
[WhiteElo "2518"]
[BlackElo "2311"]
[TimeControl "180+1"]
[EndTime "11:44:14 PDT"]
[Termination "Das_Virus_2020 won by resignation"]

1. e4 {[%clk 0:03:00.9]} 1... c5 {[%clk 0:02:57.5]} 2. c3 {[%clk 0:02:59.2]}
2... d5 {[%clk 0:02:54.8]} 3. exd5 {[%clk 0:02:59]} 3... Qxd5 {[%clk 0:02:55.7]}
4. d4 {[%clk 0:02:59.3]} 4... Nc6 {[%clk 0:02:55.4]} 5. Nf3 {[%clk 0:02:58.7]}
5... Bf5 {[%clk 0:02:55.4]} 6. Nbd2 {[%clk 0:02:57.5]} 6... cxd4 {[%clk
0:02:54.7]} 7. Bc4 {[%clk 0:02:56.3]} 7... Qd7 {[%clk 0:02:49.5]} 8. Nxd4 {[%clk
0:02:47]} 8... Nxd4 {[%clk 0:02:42.7]} 9. cxd4 {[%clk 0:02:47.9]} 9... e6 {[%clk
0:02:35.8]} 10. Qe2 {[%clk 0:02:41.8]} 10... a6 {[%clk 0:02:29.9]} 11. d5 {[%clk
0:02:38.8]} 11... Nf6 {[%clk 0:02:24.3]} 12. dxe6 {[%clk 0:02:36.2]} 12... Bxe6
{[%clk 0:02:24.3]} 13. Bxe6 {[%clk 0:02:32.9]} 13... Qxe6 {[%clk 0:02:22.4]} 14.
Qxe6+ {[%clk 0:02:32.2]} 14... fxe6 {[%clk 0:02:23.3]} 15. O-O {[%clk
0:02:31.5]} 15... Kf7 {[%clk 0:02:21.9]} 16. Nf3 {[%clk 0:02:31.3]} 16... h6
{[%clk 0:02:18.7]} 17. Ne5+ {[%clk 0:02:26.7]} 17... Kg8 {[%clk 0:02:17.8]} 18.
Ng6 {[%clk 0:02:26.3]} 18... Re8 {[%clk 0:02:10.9]} 19. Nxh8 {[%clk 0:02:25.1]}
19... Kxh8 {[%clk 0:02:09.7]} 20. Be3 {[%clk 0:02:20.7]} 20... Nd5 {[%clk
0:02:08.1]} 21. Rac1 {[%clk 0:02:11]} 21... Bd6 {[%clk 0:02:04.8]} 22. a3 {[%clk
0:02:06.8]} 22... b6 {[%clk 0:01:56.8]} 23. g3 {[%clk 0:01:42.4]} 23... Nxe3
{[%clk 0:01:55.5]} 24. fxe3 {[%clk 0:01:43.3]} 24... Bc5 {[%clk 0:01:56.1]} 25.
Kf2 {[%clk 0:01:42.1]} 25... a5 {[%clk 0:01:55]} 26. Ke2 {[%clk 0:01:40.9]}
26... e5 {[%clk 0:01:51.3]} 27. Rf7 {[%clk 0:01:34.1]} 27... Rd8 {[%clk
0:01:47.5]} 28. Rd1 {[%clk 0:01:25.1]} 28... Rxd1 {[%clk 0:01:39.5]} 29. Kxd1
{[%clk 0:01:26]} 29... Bxe3 {[%clk 0:01:39.4]} 30. b3 {[%clk 0:01:25.2]} 30...
Bc5 {[%clk 0:01:38.7]} 31. a4 {[%clk 0:01:25.1]} 31... Kg8 {[%clk 0:01:37.1]}
32. Rd7 {[%clk 0:01:23.9]} 32... Kh7 {[%clk 0:01:34.5]} 33. Ke2 {[%clk
0:01:22.5]} 33... Kg6 {[%clk 0:01:33.9]} 34. Kf3 {[%clk 0:01:22.7]} 34... Kf6
{[%clk 0:01:33.1]} 35. Ke4 {[%clk 0:01:21.2]} 35... Bg1 {[%clk 0:01:31.3]} 36.
h3 {[%clk 0:01:17.6]} 36... Bf2 {[%clk 0:01:29.7]} 37. g4 {[%clk 0:01:17.4]}
37... Bc5 {[%clk 0:01:27.9]} 38. Kd5 {[%clk 0:01:13.2]} 38... g6 {[%clk
0:01:19.8]} 39. Ke4 {[%clk 0:01:10.9]} 39... h5 {[%clk 0:01:16.3]} 40. Rd5
{[%clk 0:01:06.8]} 40... hxg4 {[%clk 0:01:14.1]} 41. hxg4 {[%clk 0:01:07.7]}
41... Bd4 {[%clk 0:01:13.8]} 42. Rd6+ {[%clk 0:01:00.8]} 42... Kg5 {[%clk
0:01:12.8]} 43. Kf3 {[%clk 0:00:59.6]} 43... Bc5 {[%clk 0:01:08.5]} 44. Re6
{[%clk 0:00:53.4]} 44... Bd4 {[%clk 0:01:08.4]} 45. Kg3 {[%clk 0:00:51.7]} 45...
Kh6 {[%clk 0:01:03.6]} 46. Kh4 {[%clk 0:00:41.7]} 46... Bf2+ {[%clk 0:01:02.4]}
47. Kh3 {[%clk 0:00:41.8]} 47... Bd4 {[%clk 0:01:00.9]} 48. Kg3 {[%clk
0:00:40.3]} 48... Kg7 {[%clk 0:01:00.6]} 49. Kf3 {[%clk 0:00:37]} 49... Kh6
{[%clk 0:00:58.6]} 50. Re8 {[%clk 0:00:34.1]} 50... Kg5 {[%clk 0:00:57.7]} 51.
Kg3 {[%clk 0:00:32.9]} 51... Bc5 {[%clk 0:00:56]} 52. Rxe5+ {[%clk 0:00:30.2]}
52... Kf6 {[%clk 0:00:56.3]} 53. Re2 {[%clk 0:00:28.8]} 53... g5 {[%clk
0:00:55.9]} 54. Kf3 {[%clk 0:00:28.7]} 54... Bd4 {[%clk 0:00:53.5]} 55. Ke4
{[%clk 0:00:28.3]} 55... Bc5 {[%clk 0:00:52.7]} 56. Rh2 {[%clk 0:00:26.1]} 56...
Kg6 {[%clk 0:00:51.8]} 57. Rh8 {[%clk 0:00:24.5]} 57... Kf6 {[%clk 0:00:50.9]}
58. Rc8 {[%clk 0:00:22.5]} 58... Ke6 {[%clk 0:00:50.7]} 59. Rc6+ {[%clk
0:00:21.4]} 59... Kd7 {[%clk 0:00:48.6]} 60. Kd5 {[%clk 0:00:20.3]} 60... Be3
{[%clk 0:00:47.2]} 61. Rg6 {[%clk 0:00:19.7]} 61... Kc7 {[%clk 0:00:45.6]} 62.
Ke4 {[%clk 0:00:17.5]} 62... Bf4 {[%clk 0:00:44.7]} 63. Kf5 {[%clk 0:00:17.1]}
63... Kb7 {[%clk 0:00:37.8]} 64. Rxg5 {[%clk 0:00:16.7]} 64... Bxg5 {[%clk
0:00:38.7]} 65. Kxg5 {[%clk 0:00:17.4]} 65... Kc6 {[%clk 0:00:39.1]} 66. Kf5
{[%clk 0:00:17.7]} 66... Kc5 {[%clk 0:00:39.6]} 67. g5 {[%clk 0:00:18.6]} 67...
Kb4 {[%clk 0:00:40]} 68. g6 {[%clk 0:00:19.5]} 68... Kxb3 {[%clk 0:00:40.6]} 69.
g7 {[%clk 0:00:20.4]} 69... Kxa4 {[%clk 0:00:41.1]} 70. g8=Q {[%clk 0:00:21.3]}
70... b5 {[%clk 0:00:41.6]} 71. Qa2+ {[%clk 0:00:20.4]} 71... Kb4 {[%clk
0:00:41.7]} 72. Ke4 {[%clk 0:00:20.4]} 72... a4 {[%clk 0:00:42.1]} 73. Kd3
{[%clk 0:00:20.4]} 73... a3 {[%clk 0:00:43]} 74. Kc2 {[%clk 0:00:20]} 74... Ka4
{[%clk 0:00:43.9]} 75. Qb3+ {[%clk 0:00:19.7]} 75... Ka5 {[%clk 0:00:44]} 1-0

[Event "*** Titled Tuesday Blitz"]
[Site "Chess.com"]
[Date "2021.04.27"]
[Round "9"]
[White "Nafania1"]
[Black "Korchmar_Vasiliy"]
[Result "1-0"]
[WhiteElo "2571"]
[BlackElo "2676"]
[TimeControl "180+1"]
[EndTime "11:44:17 PDT"]
[Termination "Nafania1 won on time"]

1. e4 {[%clk 0:03:00.9]} 1... c5 {[%clk 0:03:00.2]} 2. Nf3 {[%clk 0:03:00.8]}
2... d6 {[%clk 0:03:00.8]} 3. Bb5+ {[%clk 0:03:00]} 3... Nc6 {[%clk 0:03:00]} 4.
O-O {[%clk 0:02:59.4]} 4... Bd7 {[%clk 0:02:59.9]} 5. Re1 {[%clk 0:02:59.6]}
5... Nf6 {[%clk 0:02:59.1]} 6. c3 {[%clk 0:02:58.5]} 6... e6 {[%clk 0:02:47.7]}
7. d4 {[%clk 0:02:57.5]} 7... Be7 {[%clk 0:02:47.4]} 8. d5 {[%clk 0:02:37.7]}
8... Ne5 {[%clk 0:02:46.6]} 9. Bxd7+ {[%clk 0:02:30.6]} 9... Nexd7 {[%clk
0:02:45.1]} 10. dxe6 {[%clk 0:02:30.4]} 10... fxe6 {[%clk 0:02:46]} 11. Qb3
{[%clk 0:02:20.7]} 11... d5 {[%clk 0:02:43.1]} 12. exd5 {[%clk 0:02:15.1]} 12...
exd5 {[%clk 0:02:44]} 13. Qxb7 {[%clk 0:02:15]} 13... O-O {[%clk 0:02:43.8]} 14.
Qc6 {[%clk 0:02:12.7]} 14... h6 {[%clk 0:02:13.9]} 15. Bf4 {[%clk 0:01:55.6]}
15... Rf7 {[%clk 0:01:59.8]} 16. Nbd2 {[%clk 0:01:53.1]} 16... Rc8 {[%clk
0:01:56]} 17. Qe6 {[%clk 0:01:44.8]} 17... Nf8 {[%clk 0:01:56]} 18. Qe2 {[%clk
0:01:43.2]} 18... Ng6 {[%clk 0:01:54.6]} 19. Bg3 {[%clk 0:01:43]} 19... Bd6
{[%clk 0:01:50.4]} 20. Qe6 {[%clk 0:01:29.2]} 20... Bxg3 {[%clk 0:01:46.1]} 21.
hxg3 {[%clk 0:01:28.9]} 21... Nf8 {[%clk 0:01:41.8]} 22. Qe2 {[%clk 0:01:22.2]}
22... Ng6 {[%clk 0:01:42]} 23. Qe6 {[%clk 0:01:20.8]} 23... Nf8 {[%clk
0:01:41.9]} 24. Qe2 {[%clk 0:01:20.7]} 24... Qb6 {[%clk 0:01:40.4]} 25. b3
{[%clk 0:01:07.4]} 25... Re8 {[%clk 0:01:34.1]} 26. Qd3 {[%clk 0:01:07.3]} 26...
Rfe7 {[%clk 0:01:26.3]} 27. Rxe7 {[%clk 0:01:06.4]} 27... Rxe7 {[%clk
0:01:27.2]} 28. Re1 {[%clk 0:01:04.8]} 28... Rxe1+ {[%clk 0:01:27]} 29. Nxe1
{[%clk 0:01:04.6]} 29... Qa5 {[%clk 0:01:27.6]} 30. a4 {[%clk 0:00:59.5]} 30...
Ne6 {[%clk 0:00:59.9]} 31. Nef3 {[%clk 0:00:59.5]} 31... Qb6 {[%clk 0:00:57.8]}
32. c4 {[%clk 0:00:59.3]} 32... d4 {[%clk 0:00:56.3]} 33. Ne4 {[%clk 0:00:59.2]}
33... Nd7 {[%clk 0:00:45.9]} 34. Ned2 {[%clk 0:00:53.4]} 34... Nf6 {[%clk
0:00:39.4]} 35. Qf5 {[%clk 0:00:53.4]} 35... Nf8 {[%clk 0:00:31.3]} 36. Qc8
{[%clk 0:00:50.7]} 36... Qb4 {[%clk 0:00:27.4]} 37. Qc7 {[%clk 0:00:45.5]} 37...
a5 {[%clk 0:00:26.2]} 38. Qc6 {[%clk 0:00:38]} 38... Qa3 {[%clk 0:00:23.8]} 39.
Qc8 {[%clk 0:00:27.4]} 39... h5 {[%clk 0:00:19.1]} 40. Qf5 {[%clk 0:00:23.1]}
40... Qc1+ {[%clk 0:00:18.9]} 41. Nf1 {[%clk 0:00:20.9]} 41... Qd1 {[%clk
0:00:04.9]} 42. Ne5 {[%clk 0:00:19.8]} 42... Qxb3 {[%clk 0:00:01.5]} 43. Nc6
{[%clk 0:00:14.8]} 43... Qxa4 {[%clk 0:00:01.3]} 44. Ne7+ {[%clk 0:00:14.5]}
44... Kf7 {[%clk 0:00:01.8]} 45. Nd5 {[%clk 0:00:08.7]} 45... Qxc4 {[%clk
0:00:01]} 46. Nxf6 {[%clk 0:00:08.8]} 46... gxf6 {[%clk 0:00:01.9]} 47. Qxh5+
{[%clk 0:00:09.1]} 47... Ng6 {[%clk 0:00:01.7]} 48. Qh7+ {[%clk 0:00:07.8]}
48... Ke6 {[%clk 0:00:02.2]} 49. Qxg6 {[%clk 0:00:08.1]} 49... d3 {[%clk
0:00:03.1]} 50. Qe8+ {[%clk 0:00:07.1]} 50... Kd6 {[%clk 0:00:03]} 51. Qe3
{[%clk 0:00:07.6]} 51... Qd4 {[%clk 0:00:02]} 52. Qd2 {[%clk 0:00:06]} 1-0